Cogmind - Beta 16.1 @@@ ROGUE MODE // 2026.03.19 @ 21:39:58 Player: Vikcy6666 Result: Destroyed by as-51720 with Assembled Maul Performance ------------- Evolutions (0) 0 Regions Visited (4) 800 Robots Destroyed (23) 115 Value Destroyed (474) 474 Prototype IDs (2) 40 Alien Tech Used (0) 0 Bonus (12) 12 TOTAL SCORE: 1441 Bonus ------- High Alert Combat Kills 12 Cogmind --------- Core Integrity 0/250 Matter 25/300 Energy 98/100 System Corruption 4% Temperature Cool (20) Movement Treading (160) Location -9/Mines Parts ------- > --- POWER (1) -------- (None) > --- PROPULSION (2) --- Light Treads Light Treads > --- UTILITY (2) ------ Small Storage Unit > --- WEAPON (2) ------- Light Assault Rifle Light Assault Rifle > --- INVENTORY (8) ---- Aluminum Leg Grenade Launcher Grenade Launcher Peak State ------------ > --- POWER ------------ Light Ion Engine > --- PROPULSION ------- Aluminum Leg Aluminum Leg > --- UTILITY ---------- Heat Sink Small Storage Unit > --- WEAPON ----------- Assault Rifle Grenade Launcher > --- INVENTORY -------- Light Ion Engine Light Treads Light Treads EM Pulse Gun Small Laser [Rating: 7] Favorites ----------- Power Light Ion Engine Engine Light Ion Engine Propulsion Aluminum Leg Treads Light Treads Leg Aluminum Leg Utility Small Storage Unit Device Terrain Scanner Storage Small Storage Unit Weapon Grenade Launcher Energy Gun EM Pulse Gun Ballistic Gun Assault Rifle Launcher Grenade Launcher Special Weapon Mining Laser Build | -11 -10 -10 -10 -9 ------- Run | Yrd Mat Min Exi Min Slots Evolved . | . . . . . Power . | . . . . . Propulsion . | . . . . . Utility . | . . . . . Weapon . | . . . . . Parts Attached 18 | 8 6 1 . 3 Power 2 | 1 1 . . . Engine 2 | 1 1 . . . Core . | . . . . . Reactor . | . . . . . Propulsion 5 | 4 1 . . . Treads 2 | 2 . . . . Leg 3 | 2 1 . . . Wheel . | . . . . . Hover . | . . . . . Flight . | . . . . . Utility 4 | 1 2 . . 1 Device 3 | . 2 . . 1 Storage 1 | 1 . . . . Processor . | . . . . . Hackware . | . . . . . Protection . | . . . . . Artifact . | . . . . . Weapon 7 | 2 2 1 . 2 Energy Gun 1 | 1 . . . . Energy Cannon . | . . . . . Ballistic Gun 3 | 1 . 1 . 1 Ballistic Cannon . | . . . . . Launcher 2 | . 2 . . . Special Weapon 1 | . . . . 1 Impact Weapon . | . . . . . Slashing Weapon . | . . . . . Piercing Weapon . | . . . . . Special Melee Weapon . | . . . . . Unidentified Prototypes . | . . . . . Parts Lost 7 | . . . . 7 Power 2 | . . . . 2 Propulsion 1 | . . . . 1 Utility 2 | . . . . 2 Weapon 2 | . . . . 2 Highest Loss Streak 7 | . . . . 7 To Critical Strikes . | . . . . . Average Backups 5 | 1 5 7 7 6 Power . | . 1 1 1 . Propulsion 1 | . 2 2 2 1 Utility . | . . 1 1 . Weapon 2 | . 2 3 3 3 Tool/Special . | . . . . . Unused Backups 1 | . 1 . . . Power . | . . . . . Propulsion . | . . . . . Utility . | . . . . . Weapon 1 | . 1 . . . Tool/Special . | . . . . . Average Slot Usage (%) 96 | . 93 100 100 94 Engine 13 | . 14 14 14 11 Leg 27 | . 28 28 28 25 Device 11 | . 8 14 14 12 Storage 14 | . 14 14 14 14 Energy Gun 3 | . 3 . 14 11 Ballistic Gun 7 | . 9 8 . 3 Launcher 15 | . 15 19 14 3 Peak Build Rating 7 | 6 7 7 7 7 Average Rating 6 | 5 6 7 7 6 On Entrance 5 | . 6 7 7 7 Avg Prop Armor Cover (%) . | . . . . . Naked Turns . | . . . . . Heaviest Build 15 | 12 15 15 14 14 Greatest Support 40 | 40 20 20 20 20 Greatest Overweight (x) . | . . . . . Average Overweight (x) . | . . . . . Largest Inventory Capacity 8 | 8 8 8 8 8 Average Capacity 7 | 7 8 8 8 8 Most Carried 8 | 4 7 7 7 8 Average Carried 5 | 2 5 7 7 7 Final Capacity 8 | 8 8 8 8 8 Final Carried 7 | 4 7 7 7 3 Class Distribution -------------------- 100% | Mutant Dominant Class ---------------- Mutant | -10/Materials Mutant | -10/Mines Mutant | -10/Exiles Mutant | -9/Mines Resources | -11 -10 -10 -10 -9 ----------- Run | Yrd Mat Min Exi Min Matter Collected 423 | 277 93 . . 53 Remotely . | . . . . . Salvage Created 463 | . 377 20 . 66 Parts 42 | . 35 4 . 3 Haulers Intercepted 1 | . 1 . . . Recyclers Shooed 2 | . 2 . . . Parts Field Recycled . | . . . . . Retrieved Matter . | . . . . . Parts Self-Destructed . | . . . . . Prevented . | . . . . . Parts Restored . | . . . . . Kills | -11 -10 -10 -10 -9 ------- Run | Yrd Mat Min Exi Min Combat Hostiles Destroyed 19 | . 14 3 . 2 Melee 1 | . . . . 1 Guns 5 | . 4 . . 1 AOE 13 | . 10 3 . . Classes Destroyed 8 | . 6 . . 2 Worker 1 | . 1 . . . Tunneler 2 | . . . . 2 Hauler 1 | . 1 . . . Operator 1 | . 1 . . . Watcher 1 | . 1 . . . Swarmer 9 | . 6 3 . . Grunt 8 | . 8 . . . Assembled 2 | . . . . 2 Best Kill Streak 12 | . 12 3 . 2 Combat Bots Only 6 | . 6 3 . 2 Max Kills in Single Turn 2 | . 2 2 . 1 Gunslinging . | . . . . . Exploded 2 | . 2 2 . . Melee 1 | . . . . 1 Uniques/NPCs Destroyed . | . . . . . Combat | -11 -10 -10 -10 -9 -------- Run | Yrd Mat Min Exi Min Hostile Shots Fired 116 | . 37 3 . 76 Missed 27 | . 11 1 . 15 Hits 89 | . 26 2 . 61 Melee 7 | . . . . 7 Projectile 82 | . 26 2 . 54 Critical Strikes 3 | . . . . 3 Part Disruptions 1 | . . . . 1 Damage Taken 1194 | . 257 19 . 918 Core 268 | . 30 . . 238 Absorbed by Shields . | . . . . . Core Remaining (%) 100 | 100 . . . . Volleys Fired 51 | . 28 12 . 11 Largest 2 | . 2 2 . 2 Hottest 140 | . 60 60 . 140 Shots Fired 84 | . 52 14 . 18 Gun 61 | . 36 10 . 15 Cannon . | . . . . . Launcher 20 | . 16 4 . . Special 3 | . . . . 3 Kinetic 44 | . 26 10 . 8 Thermal 3 | . . . . 3 Explosive 20 | . 16 4 . . Electromagnetic 17 | . 10 . . 7 Robot Hit Streak 6 | . 3 3 . 6 Robot Miss Streak 3 | . 3 2 . 2 Penetration Max . | . . . . . Secondary Targets 2 | . 1 . . 1 Max Gunslinging Chain 1 | . 1 . . 1 Shots Hit Robots 35 | . 16 7 . 12 Core Hits 39 | . 28 4 . 7 Critical Kills . | . . . . . Critical Parts Destroyed 1 | . . 1 . . Critical Strikes 1 | . . 1 . . Destroy 1 | . . 1 . . Melee Attacks . | . . . . . Impact . | . . . . . Slashing . | . . . . . Piercing . | . . . . . Sneak Attacks . | . . . . . Combat Hostiles . | . . . . . Follow-up Attacks . | . . . . . Damage Inflicted 1272 | . 942 202 . 128 Guns 330 | . 171 36 . 123 Cannons . | . . . . . Explosions 937 | . 771 166 . . Melee . | . . . . . Ramming 5 | . . . . 5 Kinetic 204 | . 115 36 . 53 Thermal . | . . . . . Explosive 937 | . 771 166 . . Electromagnetic 126 | . 56 . . 70 Impact . | . . . . . Slashing . | . . . . . Piercing . | . . . . . Highest Corruption 4 | . . . . 4 Average Corruption 4 | . . . . 4 Corruption Purged . | . . . . . Corruption Blocked . | . . . . . Effects 1 | . . . . 1 Message Errors 1 | . . . . 1 Overload Shots . | . . . . . Overflow Damage 10 | . 7 3 . . Projectiles . | . . . . . Explosions 10 | . 7 3 . . Melee . | . . . . . Knockbacks . | . . . . . Impact . | . . . . . Kinetic . | . . . . . Secondary . | . . . . . Self-Inflicted Damage . | . . . . . Shots . | . . . . . Rammed 4 | . . . . 4 Targets Rammed 4 | . . . . 4 Kicked . | . . . . . Crushed . | . . . . . Highest Temperature 80 | . 36 . . 80 Average Temperature 25 | . 19 . . 32 Received Heat Transfer 295 | . 75 . . 220 Siege Activations . | . . . . . Martial Activations . | . . . . . Shielding Activations . | . . . . . Robots Disrupted . | . . . . . Combat Hostiles . | . . . . . Robots Corrupted . | . . . . . Combat Hostiles . | . . . . . Parts Fried . | . . . . . Impact Corruptions . | . . . . . Robots Melted . | . . . . . Combat Hostiles . | . . . . . Parts Melted . | . . . . . Heat Transferred . | . . . . . Parts Sabotaged . | . . . . . Parts Stolen . | . . . . . Parts Stripped . | . . . . . Power Chain Reactions . | . . . . . Alert | -11 -10 -10 -10 -9 ------- Run | Yrd Mat Min Exi Min Maximum Alert Level 2 | . 2 1 . . Low Security (%) 74 | 100 34 97 . 100 Level 1 9 | . 23 2 . . Level 2 15 | . 41 . . . Level 3 . | . . . . . Level 4 . | . . . . . Level 5 . | . . . . . High Security . | . . . . . Max Security . | . . . . . Peak Influence 449 | . 449 206 . 5 Initial 166 | . . 166 . . Average 152 | . 261 148 . 1 Influence Increases 656 | . 555 90 . 11 Destroy 0b10 Robot/C 340 | . 280 60 . . Destroy 0b10 Robot/NC 30 | . 20 . . 10 Destroy Leader 64 | . 54 10 . . Successful Hack 22 | . 22 . . . Disable Machine 75 | . 75 . . . Destroy Structure 110 | . 89 20 . 1 Lose Combat Pursuer 15 | . 15 . . . Influence Decreases 656 | . 126 423 96 11 Entered New Map 359 | . . 263 96 . Time Decay 296 | . 126 160 . 10 Lost Part 1 | . . . . 1 Squads Dispatched 2 | . 2 . . . Investigation 2 | . 2 . . . Extermination . | . . . . . Reinforcement . | . . . . . Assault . | . . . . . Garrison . | . . . . . Intercept . | . . . . . Searches Triggered . | . . . . . Construction Impeded . | . . . . . Haulers Reinforced . | . . . . . Active Scanning Responses . | . . . . . Cargo Convoy Interrupts . | . . . . . Stealth | -11 -10 -10 -10 -9 --------- Run | Yrd Mat Min Exi Min Distress Signals 5 | . 5 . . . Communications Jammed . | . . . . . Distress Signals . | . . . . . Times Spotted 35 | . 20 2 . 13 Peak Tracking Total 11 | . 6 3 . 11 Tactical Retreats 1 | . 1 . . . Traps | -11 -10 -10 -10 -9 ------- Run | Yrd Mat Min Exi Min Traps Triggered . | . . . . . Indirectly . | . . . . . Trap Hack Attempts . | . . . . . Triggered . | . . . . . Disarmed . | . . . . . Reprogrammed . | . . . . . Reused . | . . . . . Traps Extracted . | . . . . . Installed . | . . . . . Triggered . | . . . . . Machines | -11 -10 -10 -10 -9 ---------- Run | Yrd Mat Min Exi Min Machines Disabled 5 | . 5 . . . Max in Single Turn 2 | . 2 . . . Machines Repaired . | . . . . . Machines Dismantled . | . . . . . Machines Sabotaged . | . . . . . Overloaded Fab Kills . | . . . . . Hacking | -11 -10 -10 -10 -9 --------- Run | Yrd Mat Min Exi Min Machines Accessed 4 | . 4 . . . Terminals 4 | . 4 . . . Fabricators . | . . . . . Repair Stations . | . . . . . Recycling Units . | . . . . . Scanalyzers . | . . . . . Garrison Access . | . . . . . Total Hacks 16 | . 16 . . . Successful 8 | . 8 . . . Failed 8 | . 8 . . . Catastrophic 2 | . 2 . . . Database Lockouts . | . . . . . Manual . | . . . . . Terminals 16 | . 16 . . . Fabricators . | . . . . . Repair Stations . | . . . . . Recycling Units . | . . . . . Scanalyzers . | . . . . . Garrison Access . | . . . . . Terminal Hacks 8 | . 8 . . . Record 3 | . 3 . . . Prototype ID Bank 1 | . 1 . . . Branch Access Points 1 | . 1 . . . Locate Traps 3 | . 3 . . . Fabricator Hacks . | . . . . . Repair Station Hacks . | . . . . . Recycling Unit Hacks . | . . . . . Scanalyzer . | . . . . . Garrison Access Hacks . | . . . . . Unauthorized Hacks . | . . . . . Terminals . | . . . . . Fabricators . | . . . . . Repair Stations . | . . . . . Recycling Units . | . . . . . Scanalyzers . | . . . . . Garrison Access . | . . . . . Data Cores Recovered 1 | . 1 . . . Used . | . . . . . Hacking Detections 4 | . 4 . . . Full Trace Events 2 | . 2 . . . Feedback Events . | . . . . . Feedback Blocked . | . . . . . Robot Schematics Acquired . | . . . . . Robots Built . | . . . . . Authchips . | . . . . . Time . | . . . . . Total Robot Build Rating . | . . . . . Part Schematics Acquired . | . . . . . Parts Built . | . . . . . Authchips . | . . . . . Time . | . . . . . Total Part Build Rating . | . . . . . Part Studies Acquired . | . . . . . Parts Repaired . | . . . . . Time . | . . . . . Parts Recycled . | . . . . . Recycled Matter . | . . . . . Retrieved Matter . | . . . . . Retrieved Components . | . . . . . Parts Scanalyzed . | . . . . . Part Schematics Acquired . | . . . . . Parts Damaged . | . . . . . Bothacking | -11 -10 -10 -10 -9 ------------ Run | Yrd Mat Min Exi Min Used RIF Installer . | . . . . . Robots Hacked . | . . . . . Non-combat . | . . . . . Combat . | . . . . . Robot Hacks Applied . | . . . . . Relay Couplers Released . | . . . . . Fabnet Peak Effective % . | . . . . . Robots Rewired . | . . . . . Allies Hacked . | . . . . . Hacks Repelled . | . . . . . Allies | -11 -10 -10 -10 -9 -------- Run | Yrd Mat Min Exi Min Total Allies . | . . . . . Largest Group . | . . . . . Highest-Rated Group . | . . . . . Highest-Rated Ally . | . . . . . Total Orders . | . . . . . Ally Attacks . | . . . . . Total Damage . | . . . . . Kills . | . . . . . Allies Corrupted . | . . . . . Allies Melted . | . . . . . Intel | -11 -10 -10 -10 -9 ------- Run | Yrd Mat Min Exi Min Active Infowar (turns) 627 | . 160 326 61 80 Terrain 627 | . 160 326 61 80 Robot Analysis Total . | . . . . . Derelict Logs Recovered 2 | . . 2 . . Drone Launches . | . . . . . Drone Recoveries . | . . . . . Exploration | -11 -10 -10 -10 -9 ------------- Run | Yrd Mat Min Exi Min Turns Passed 948 | 129 331 326 61 101 Spaces Moved 613 | 80 190 248 50 45 Core 8 | 8 . . . . Treads 44 | 44 . . . . Legs 561 | 28 190 248 50 45 Wheels . | . . . . . Hover . | . . . . . Flight . | . . . . . Fastest Speed 50 | 50 120 120 120 120 Average Speed 121 | 135 120 120 120 120 Slowest Speed 160 | 160 120 120 120 120 Overloaded Moves . | . . . . . Propulsion Burnouts . | . . . . . Robots Hopped . | . . . . . Potential Cave-ins . | . . . . . Cave-ins Triggered . | . . . . . Exploration Rate (%) 26 | 5 47 59 9 12 Regions Visited 4 Branch Regions 3 Pre-discovered Areas . | . . . . . Known Exits Taken 1 | . 1 . . . Unknown Exits Taken 3 | 1 . 1 1 . Scrap Searched . | . . . . . Spaces Dug 6 | . 6 . . . Terrain Destroyed 118 | . 89 28 . 1 Melee . | . . . . . Projectile 1 | . . . . 1 AOE 117 | . 89 28 . . Terrain Rammed . | . . . . . Walls Destroyed . | . . . . . Machines Disabled . | . . . . . Actions | -11 -10 -10 -10 -9 --------- Run | Yrd Mat Min Exi Min Total 722 | 100 240 264 50 68 Wait 10 | 3 3 4 . . Move 609 | 79 189 247 49 45 Hop . | . . . . . Pick Up 19 | 10 8 . . 1 Fast Attach . | . . . . . Attach 13 | 6 2 . . 5 Detach . | . . . . . Swap 12 | 2 6 1 1 2 Drop 4 | . 4 . . . Fire 51 | . 28 12 . 11 Melee . | . . . . . Ram . | . . . . . Kick . | . . . . . Crush 4 | . . . . 4 Escape Stasis . | . . . . . Rewire . | . . . . . Trap . | . . . . . Miscellaneous . | . . . . . Route ------- -11/Scrapyard -10/Materials (discovered 2 exits: *Mat / *Min) -10/Mines (discovered 2 exits: Mat / [*Exi]) -10/Exiles -9/Mines History --------- Turn | Location | Event 8 | -11/Scrapyard | Discovered new exit (range 16) 130 | -11/Scrapyard | Entered Materials 340 | -10/Materials | Build established: Mutant 398 | -10/Materials | Discovered new exit (range 16) 401 | -10/Materials | Identified exit to Mines 461 | -10/Materials | Entered Mines 673 | -10/Mines | Identified exit to Materials 712 | -10/Mines | Learned Materials emergency access door positions 763 | -10/Mines | Discovered new exit (range 13) 781 | -10/Mines | Deemed a non-threat by the Exiles lab entrance 787 | -10/Mines | Entered Exiles 808 | -10/Exiles | Discovered new exit (range 15) 848 | -10/Exiles | Entered Mines 849 | -9/Mines | Assembled infested the area 932 | -9/Mines | Core integrity fell below 50% 945 | -9/Mines | Core integrity fell below 20% 949 | -9/Mines | Destroyed by as-51720 with Assembled Maul Last Messages --------------- 00928_ Lgt. Ion Engine destroyed. 00930_ 9>X9UX8KS9UWW 3 Map ----- +----------------------------------------------------+ | | | | | | | | | | | | | | | | | | | | | | | | | | | | | | | | | ?????????????????????????????????????????????????? | | ?????????????????????????????????????????????????? | | ?????????????????????????###?????????????????????? | | ????????#???#???????????# ##????????????????????? | | ???????????????######### #????????????????????? | | ???????????????# ##???#???????????????? | | ??????#????###?# ### ### ## ###?????????????? | | ?#??????#??????# ##;a###a ##????????????? | | ???????????????# ##aaaaaa % #????????????? | | ????????####???# # a a@a * #???????????? | | ????????## ##??# ####### #???????????? | | ???????## #### #????????# ##???????????? | | ????#### ! #???????#??? ##????????????? | | ???## = #???????????? ?#?????????????? | | #??# #### ###???????????????????????????? | | ???# #??# #?????????????????????????????? | | ???# ##??# ##????????????????????????????? | | ???## ##???## ##???#?????????????????????????? | | ????### #????## ##?????????????????????????????? | | ??????## ##???## #?????????????????????????????? | | ???????###????# #?????????????????????????????? | | ??????????????# #?????????????????????????????? | | ??????????????## ##?????????????????????????????? | | ???????????????####????? ????????????????????????? | | ?????????????????????????????????????????????????? | | ?????????????????????????????????????????????????? | | ??????????????#??????????? ??????????????????????? | | ?????????????????????????????????????????????????? | | ?????????????????????????????????????????????????? | | ???????????#?????????????????????????????????????? | | ?????????????????????????????????????????????????? | | ?????????????????????????????????????????????????? | | ?????????????????????????????????????????????????? | | ?????????????????????????????????????????????????? | +----------------------------------------------------+ Best States ------------- Heat Dissipation 35 Energy Generation 10 Energy Capacity 125 Matter Stores 300 Matter Capacity 300 Sight Range 16 Terrain Scan Range 14 Terrain Scan Density 10 Evasion (%) 55 Recoil Reduction 2 Item Schematics ----------------- None Robot Schematics ------------------ None Fabricated ------------ Nothing Repaired ---------- Nothing Studied --------- None Alien Tech Used ----------------- None Achievements -------------- Fist Fight Oops Organ Harvest Challenges ------------ None Game ------ Seed GravitonPointyChargecaster Manual? 0 Play Time 00:21:07 Cumulative 7.5 hours Start 2026.03.19 @ 21:15:32 End 2026.03.19 @ 21:39:58 Sessions 1 Manual Loads 0 Difficulty Rogue Special Mode None Game No. 11 Rogue 11 Adventurer 0 Explorer 0 Win Type - Total 0 Types 0/0/0/0/0/0/0/0/0/0 Lore% 4 Gallery% 9 Achievement% 9 Wizard Run 0 Options --------- Layout 1 ASCII 0 Keyboard 0 Movement Mouse Keybinds 0 Fullscreen 1 Font 24/Smallcaps Map View 50x35 Zoom Use 0% Tactical HUD 1 Map Filters NONE Filters NONE Steam 1 RUN: 26f6c360-97c5-43fa-af25-2867bc5c2f85